Cogmind - Beta 16.1 @@@ ROGUE MODE // 2026.02.10 @ 19:13:10 Player: Drago Result: Destroyed by S-43 Plague with Heavy Machine Gun Performance ------------- Evolutions (8) 4000 Regions Visited (19) 3800 Robots Destroyed (157) 785 Value Destroyed (8932) 8932 Prototype IDs (63) 1260 Alien Tech Used (2) 400 Bonus (8807) 8807 TOTAL SCORE: 27984 Bonus ------- High Alert Combat Kills 1666 Follower Combat Kills 3369 Registered with UFD 300 Met Optimus in HQ 500 Met Zhirov 300 Built Enhanced Grunts 300 A7 Reached Mainframe 300 Met R17 at Cetus 500 Met R17 at Research 2000 Scanned by Researcher 500 Friendly Fire -928 Cogmind --------- Core Integrity 0/1450 Matter 277/300 Energy 99/100 System Corruption 7% Temperature Cool (0) Movement Core (50) Location -2/Protoforge Parts ------- > --- POWER (2) -------- (None) > --- PROPULSION (6) --- (None) > --- UTILITY (11) ----- (None) > --- WEAPON (4) ------- (None) > --- INVENTORY (5) ---- SHELL Armor High-powered Transdimensional Reconstructor Core Reset Matrix Peak State ------------ > --- POWER ------------ Particle Reactor Quantum Reactor > --- PROPULSION ------- Advanced Heavy Siege Treads Biometal Leg Centrium Leg Centrium Leg High-density Centrium Leg > --- UTILITY ---------- Advanced Cryofiber Web High-capacity Storage Unit Experimental Energy Well Advanced Visual Processing Unit Advanced Signal Interpreter Advanced Targeting Computer Experimental Core Analyzer Improved Armor Integrity Analyzer SHELL Armor > --- WEAPON ----------- Heavy Tesla Rifle Quantum Rifle Coil Gun Railgun > --- INVENTORY -------- Matter Compressor Advanced Weapon Cycler Medium Regenerative Plating Thermal Defense Suite Core Reset Matrix Heavy Tesla Rifle Proton Burst Cannon Enhanced Nova Cannon KE Penetrator Gamma Bomb Array Micro-nuke Launcher Vibroblade Lance Portable AFG [Rating: 184] Favorites ----------- Power Particle Reactor Engine Light Ion Engine Power Core Neutrino Core Reactor Particle Reactor Propulsion Compact Wheel Treads Heavy Treads Leg Carbon-fiber Leg Wheel Compact Wheel Hover Unit Cooled Gravmag System Flight Unit Field Propulsion Drive Utility Advanced Visual Processing Unit Device Advanced Cryofiber Web Storage Large Storage Unit Processor Advanced Visual Processing Unit Hackware Hacking Suite Protection Improved Medium Armor Plating Weapon KE Penetrator Energy Gun Quantum Rifle Energy Cannon Advanced Beam Cannon Ballistic Gun KE Penetrator Ballistic Cannon Enhanced Hardcell Cannon Launcher Micro-nuke Launcher Impact Weapon Makeshift Hammer Slashing Weapon Phasing Sabre Piercing Weapon Lance Special Melee Weapon Improved Datajack Build | -11 -10 -10 -7 -7 -5 -5 -5 -5 -5 -5 -4 -4 -4 -4 -3 -3 -2 -2 -2 ------- Run | Yrd Mat Sub Rec Scr Fac Was Fac Upp Upp Zhi Pro Fac Ext Cet Res Tes Res Qua Frg Slots Evolved 16 | . . . . . 10 . . . . . . 2 . . 2 . 2 . . Power 1 | . . . . . . . . . . . . . . . 1 . . . . Propulsion 4 | . . . . . 3 . . . . . . 1 . . . . . . . Utility 9 | . . . . . 6 . . . . . . 1 . . 1 . 1 . . Weapon 2 | . . . . . 1 . . . . . . . . . . . 1 . . Parts Attached 209 | 6 2 9 3 3 20 5 15 5 3 4 . 29 21 6 17 35 14 12 . Power 26 | . . 2 1 2 1 1 1 . 1 . . 4 4 1 1 5 2 . . Engine 6 | . . 2 1 1 1 . . . . . . 1 . . . . . . . Core 10 | . . . . 1 . . 1 . 1 . . 2 3 . . 2 . . . Reactor 10 | . . . . . . 1 . . . . . 1 1 1 1 3 2 . . Propulsion 59 | 2 . . . . 7 . 13 . . 3 . 6 6 2 2 12 3 3 . Treads 11 | . . . . . . . . . . . . . 4 1 2 3 . 1 . Leg 28 | . . . . . 5 . 8 . . . . 1 1 1 . 7 3 2 . Wheel 6 | 2 . . . . 2 . . . . . . . . . . 2 . . . Hover 9 | . . . . . . . . . . 3 . 5 1 . . . . . . Flight 5 | . . . . . . . 5 . . . . . . . . . . . . Utility 72 | 2 1 2 1 1 9 1 1 3 1 1 . 14 8 1 11 9 4 2 . Device 34 | 1 . . . . 5 1 . 3 . 1 . 7 4 . 6 4 1 1 . Storage 9 | 1 1 . . 1 . . . . . . . 2 . . . 2 1 1 . Processor 9 | . . . . . 3 . . . . . . 1 . . 3 . 2 . . Hackware 2 | . . . . . . . . . 1 . . 1 . . . . . . . Protection 18 | . . 2 1 . 1 . 1 . . . . 3 4 1 2 3 . . . Artifact . | . . . . . . . . . . . . . . . . . . . . Weapon 52 | 2 1 5 1 . 3 3 . 2 1 . . 5 3 2 3 9 5 7 . Energy Gun 16 | . . . . . . . . . . . . 3 1 1 3 3 3 2 . Energy Cannon 10 | . 1 4 . . . . . 1 . . . 1 . . . 1 . 2 . Ballistic Gun 13 | 2 . . . . 1 2 . 1 . . . . . 1 . 4 2 . . Ballistic Cannon 3 | . . . . . 2 1 . . . . . . . . . . . . . Launcher 3 | . . . . . . . . . . . . . 1 . . 1 . 1 . Special Weapon . | . . . . . . . . . . . . . . . . . . . . Impact Weapon 1 | . . 1 . . . . . . . . . . . . . . . . . Slashing Weapon 3 | . . . . . . . . . 1 . . 1 . . . . . 1 . Piercing Weapon 1 | . . . . . . . . . . . . . . . . . . 1 . Special Melee Weapon 2 | . . . 1 . . . . . . . . . 1 . . . . . . Unidentified Prototypes 32 | . 1 . . . 1 . 1 . . 3 . 3 . 3 3 11 1 5 . Corrupted Parts 4 | . . . . . . . . . . . . . 3 . . 1 . . . System Corruption 13 | . . . . . . . . . . . . . 6 . . 7 . . . Parts Lost 75 | . . 1 1 . 4 . 3 2 1 . 3 4 4 1 11 14 5 21 . Power 10 | . . 1 1 . 1 . 1 . 1 . . . . . 2 . 1 2 . Propulsion 22 | . . . . . 1 . . 2 . . 1 2 1 1 2 4 1 7 . Utility 24 | . . . . . 2 . 2 . . . 2 2 2 . 5 4 2 3 . Weapon 19 | . . . . . . . . . . . . . 1 . 2 6 1 9 . Highest Loss Streak 19 | . . 1 1 . 4 . 3 2 1 . 3 2 2 1 9 7 2 19 . To Critical Strikes 3 | . . . . . . . . . . . . . . 1 . 2 . . . Average Backups 9 | 3 7 13 14 10 11 13 12 3 4 3 4 6 9 9 8 8 7 9 2 Power . | 1 2 1 2 1 . 1 . . . . . . 1 1 . . 1 . . Propulsion . | . 1 1 . . . . . . . . . . . . . . . . . Utility 4 | . 1 2 3 5 4 6 7 3 4 3 3 3 5 5 4 3 3 3 . Weapon 3 | 1 3 7 8 3 4 4 3 . . . . 1 2 2 2 3 2 4 . Tool/Special . | . . . . . . . . . . . . . . . . . . . . Unused Backups 36 | . . 5 1 11 1 1 8 . . . . . 3 1 1 . 1 1 2 Power 3 | . . . . 2 . . 1 . . . . . . . . . . . . Propulsion 6 | . . 1 1 2 . . . . . . . . 2 . . . . . . Utility 14 | . . 1 . 1 1 1 6 . . . . . 1 1 1 . . 1 . Weapon 11 | . . 3 . 6 . . 1 . . . . . . . . . 1 . . Tool/Special 2 | . . . . . . . . . . . . . . . . . . . 2 Average Slot Usage (%) 86 | . 85 100 99 100 86 94 88 39 46 61 59 82 81 78 87 85 83 71 1 Engine 3 | . . 14 13 9 2 3 . . . . . . . . . . . . . Core 1 | . . . . 4 1 . . . . . . 3 4 4 2 . . . . Reactor 2 | . . . . . . 1 4 . . . . . . . 5 8 8 6 . Treads 3 | . . . . . . . . . . . . . 11 15 16 5 . . . Leg 6 | . . . . . 15 29 27 . . . . . . . 1 12 20 15 . Wheel 9 | . 28 28 28 28 9 . . . . . . . . . . . . . . Hover 2 | . . . . . . . . . . 11 17 28 7 . . . . . . Device 10 | . 14 4 . . 13 17 15 10 11 19 19 14 19 20 19 8 6 3 . Storage 9 | . 14 14 14 14 5 5 4 . . . . 3 10 10 9 9 8 7 . Processor 6 | . . . . . 9 11 10 . . . . 3 5 5 8 19 17 18 . Protection 6 | . . 9 14 14 7 5 4 . . . . 6 5 5 7 5 4 3 1 Energy Gun 4 | . . . . . . . . . . . . 9 12 14 12 8 4 4 . Energy Cannon 5 | . 4 23 14 14 . . . 4 . . . . . . . . . 1 . Ballistic Gun 4 | . 23 2 . . 14 11 15 4 5 4 . . . . 1 3 9 7 . Special Melee Weapon 1 | . . . 8 14 . . . . . . . . . . . . . . . Peak Build Rating 184 | 6 9 19 19 23 76 85 102 47 51 71 66 111 114 116 145 150 169 184 32 Average Rating 78 | 4 6 14 17 20 64 78 87 41 45 63 61 92 108 109 135 125 160 145 10 On Entrance 58 | . 6 9 19 17 23 75 82 33 42 45 66 48 107 109 116 76 132 159 5 Avg Prop Armor Cover (%) 4 | . . . . . 2 . 22 30 . 7 7 3 3 1 1 4 . 6 . Naked Turns 186 | . . . . . . . 24 . . . . . . . . . . 112 50 Heaviest Build 140 | 9 27 39 34 41 60 78 71 21 30 20 15 85 84 82 101 105 111 140 . Greatest Support 210 | 32 32 32 32 32 78 78 140 21 21 33 33 65 210 210 210 137 142 156 3 Greatest Overweight (x) 3 | . . 1 1 1 1 . . . 1 1 . 1 1 . . 3 . 1 . Average Overweight (x) . | . . . . . . . . . . . . . . . . . . . . Largest Inventory Capacity 20 | 8 15 15 15 15 15 15 15 5 5 5 5 10 10 10 10 10 10 20 5 Average Capacity 12 | 7 13 15 15 15 15 15 14 5 5 5 5 7 10 10 10 10 10 15 5 Most Carried 17 | 5 9 15 15 15 15 15 15 5 5 5 5 10 10 10 10 10 10 17 5 Average Carried 10 | 3 7 13 14 12 13 14 14 4 5 4 5 6 9 9 9 9 8 10 4 Final Capacity 15 | 8 15 15 15 15 15 15 5 5 5 5 5 10 10 10 10 10 10 5 5 Final Carried 15 | 5 9 15 15 14 15 15 5 5 5 5 5 10 10 10 10 9 6 5 5 Scrap Suit Usage (%) 17 | . . . . . 91 100 91 . . . . 25 21 . . . . . . Parts Cannibalized 5 | . . . . . . . . . . . . 1 4 . . . . . . Class Distribution -------------------- 26% | Mutant 23% | Scavenger-Tank 22% | Scavenger-Gunner 13% | Commander-Mutant 4% | Scavenger-Mutant 4% | Scavenger-Assassin Dominant Class ---------------- Mutant | -10/Materials Mutant | -10/Subcaves Commander-Mutant | -7/Recycling Commander-Mutant | -7/Scraptown Scavenger-Skirmisher | -5/Factory Scavenger-Assassin | -5/Waste Gunner | -5/Factory Mutant | -5/Upper Caves Mutant | -5/Upper Caves Mutant | -5/Zhirov Mutant | -4/Proximity Caves Scavenger-Tank | -4/Factory Scavenger-Tank | -4/Extension Scavenger-Tank | -4/Cetus Scavenger-Tank | -3/Research Scavenger-Gunner | -3/Testing Scavenger-Gunner | -2/Research Scavenger-Gunner | -2/Quarantine Mutant | -2/Protoforge Resources | -11 -10 -10 -7 -7 -5 -5 -5 -5 -5 -5 -4 -4 -4 -4 -3 -3 -2 -2 -2 ----------- Run | Yrd Mat Sub Rec Scr Fac Was Fac Upp Upp Zhi Pro Fac Ext Cet Res Tes Res Qua Frg Matter Collected 6942 | 309 30 188 40 10 524 258 654 224 30 87 9 231 1187 581 458 988 777 357 . Remotely . | . . . . . . . . . . . . . . . . . . . . Salvage Created 10286 | 108 30 364 145 . 773 . 654 221 87 428 . 295 1789 116 971 2193 1439 673 . Parts 361 | 16 3 21 4 . 21 . 22 11 . 2 . 9 47 1 30 94 55 25 . Haulers Intercepted 2 | . . . . . . . 2 . . . . . . . . . . . . Recyclers Shooed 6 | . . . . . 1 . . . . . . . 1 . . 3 1 . . Parts Field Recycled . | . . . . . . . . . . . . . . . . . . . . Retrieved Matter . | . . . . . . . . . . . . . . . . . . . . Parts Self-Destructed 14 | . . 8 . . . . . 6 . . . . . . . . . . . Prevented . | . . . . . . . . . . . . . . . . . . . . Parts Restored . | . . . . . . . . . . . . . . . . . . . . Kills | -11 -10 -10 -7 -7 -5 -5 -5 -5 -5 -5 -4 -4 -4 -4 -3 -3 -2 -2 -2 ------- Run | Yrd Mat Sub Rec Scr Fac Was Fac Upp Upp Zhi Pro Fac Ext Cet Res Tes Res Qua Frg Combat Hostiles Destroyed 116 | . . 8 . . 7 . 4 2 . . . 3 19 2 13 29 22 7 . Guns 75 | . . . . . 6 . 4 2 . . . 3 13 2 10 21 12 2 . Cannons 10 | . . 6 . . 1 . . . . . . . 1 . 1 . . 1 . AOE 21 | . . . . . . . . . . . . . 1 . 1 7 9 3 . Classes Destroyed 26 | 2 1 1 . . 4 . 2 3 . . . 1 2 . 5 2 2 1 . Worker 5 | . . . . . 1 . . . . . . . . . . 2 2 . . Builder 5 | . . . . . . . 1 . . . . . 1 . . . 3 . . Tunneler 5 | 4 . . . . . . . . . . . . . . . . 1 . . Hauler 2 | . . . . . . . 2 . . . . . . . . . . . . Recycler 11 | 1 . . 2 . 2 . 1 . . . . 1 2 . . 2 . . . Minesweeper 1 | . . . . . . . . 1 . . . . . . . . . . . Mechanic 1 | . . . . . . . . . . . . . . . . . 1 . . Operator 2 | . . . . . . . . . . . . 1 . . . 1 . . . Watcher 5 | . 1 . . . . . 1 . . . . . 1 . . 1 . 1 . Swarmer 7 | . . . . . . . . . . . . . . . 1 6 . . . Grunt 35 | . . . . . 4 . 4 . . . . 1 9 . 1 9 7 . . Brawler 4 | . . . . . . . . . . . . . 2 . . 1 1 . . Duelist 2 | . . . . . . . . . . . . . . . . 1 1 . . Researcher 2 | . . . . . . . . . . . . . . . . 1 . 1 . Sentry 21 | . . . . . 1 . . . . . . . 6 . 5 4 5 . . Specialist 3 | . . . . . . . . . . . . . . . . . . 3 . Hunter 14 | . . . . . . . . . . . . . . . 1 3 6 4 . Programmer 13 | . . . . . 2 . . 1 . . . 2 . . 2 5 1 . . Q-Series 1 | . . . . . . . . . . . . . . . . . 1 . . Behemoth 3 | . . . . . . . . . . . . . 2 . 1 . . . . Cetus Guard 2 | . . . . . . . . . . . . . . 2 . . . . . Striker 1 | . . . . . . . . . . . . . . . 1 . . . . Executioner 1 | . . . . . . . . . . . . . . . 1 . . . . Subdweller 8 | . . 8 . . . . . . . . . . . . . . . . . Packrat 1 | . . . . . . . . . 1 . . . . . . . . . . Samaritan 1 | . . . . . . . . 1 . . . . . . . . . . . Thug 1 | . . . . . . . 1 . . . . . . . . . . . . Mutant 1 | . . . . . . . . 1 . . . . . . . . . . . Revision 1 | . . . . . . . . . . . . . . . 1 . . . . Best Kill Streak 10 | 4 1 2 1 . 4 . 4 1 . . . 1 4 2 2 6 10 4 . Combat Bots Only 7 | . . 2 . . 4 . 2 1 . . . 1 4 2 2 5 7 4 . Max Kills in Single Turn 4 | 1 1 1 1 . 2 . 2 1 1 . . 1 1 1 2 3 4 2 . Gunslinging 1 | . . . . . 1 . . . . . . . . . . . . . . Exploded 3 | . . . . . . . . . . . . . 1 . 1 3 3 2 . Melee . | . . . . . . . . . . . . . . . . . . . . Uniques/NPCs Destroyed . | . . . . . . . . . . . . . . . . . . . . Combat | -11 -10 -10 -7 -7 -5 -5 -5 -5 -5 -5 -4 -4 -4 -4 -3 -3 -2 -2 -2 -------- Run | Yrd Mat Sub Rec Scr Fac Was Fac Upp Upp Zhi Pro Fac Ext Cet Res Tes Res Qua Frg Hostile Shots Fired 1903 | . . 36 11 . 59 . 123 27 4 . 26 107 111 33 157 385 173 649 2 Missed 654 | . . 9 5 . 19 . 35 8 2 . 14 39 40 9 47 103 65 259 . Hits 1249 | . . 27 6 . 40 . 88 19 2 . 12 68 71 24 110 282 108 390 2 Melee 18 | . . . . . . . 2 . . . . . . . 7 4 5 . . Projectile 1231 | . . 27 6 . 40 . 86 19 2 . 12 68 71 24 103 278 103 390 2 AOE 32 | . . . . . 1 . . . . . . . . . 9 . 15 7 . Critical Strikes 59 | . . . . . 5 . 3 3 . . . 7 5 6 7 10 7 6 . Actively Blocked 1 | . . . . . . . . . . . . 1 . . . . . . . Part Disruptions 2 | . . . . . 1 . . . . . . 1 . . . . . . . Damage Taken 25534 | . . 657 72 . 1097 . 1705 303 35 . 204 1369 1255 582 3257 4967 3584 6405 42 Core 3226 | . . 162 3 . 138 . 571 72 . . 18 75 126 59 109 431 409 1011 42 Absorbed by Shields 1562 | . . . 9 . 334 . . . . . . . 336 173 274 368 68 . . Redirected to Shielding 34 | . . 5 . . . . . . . . . 29 . . . . . . . Ignored by Resistances 196 | . . . . . 44 . . . . . . . . . 122 . . 30 . Regen/Repaired (Parts) 3836 | . . . . . . 72 20 . . . . 3 40 . . 242 2534 889 36 Core Remaining (%) 56 | 100 . . . 34 . . . . . . 20 . . 68 . 58 . . . Volleys Fired 565 | 16 4 54 4 . 26 19 34 34 . . . 25 73 14 60 93 67 42 . Largest 4 | 2 2 2 1 . 3 3 3 1 . . . 3 3 3 3 3 4 4 . Hottest 308 | 40 68 148 68 . 99 124 99 81 . . . 263 276 244 282 308 203 229 . Shots Fired 1209 | 32 6 83 4 . 74 33 78 32 . 1 . 41 183 34 143 239 154 72 . Gun 996 | 32 4 . . . 66 19 78 31 . 1 . 41 167 32 130 224 127 44 . Cannon 182 | . 2 83 4 . 8 14 . 1 . . . . 12 . 9 10 15 24 . Launcher 31 | . . . . . . . . . . . . . 4 2 4 5 12 4 . Special . | . . . . . . . . . . . . . . . . . . . . Kinetic 439 | 32 4 . . . 74 33 78 31 . 1 . . . . 14 68 89 15 . Thermal 700 | . 2 83 4 . . . . . . . . 41 179 32 125 166 42 26 . Explosive 29 | . . . . . . . . . . . . . 4 2 4 5 12 2 . Electromagnetic 41 | . . . . . . . . 1 . . . . . . . . 11 29 . Robot Hit Streak 32 | 6 2 12 2 . 14 8 6 9 . . . 4 14 17 32 17 11 19 . Robot Miss Streak 9 | 2 1 4 1 . 3 3 6 3 . . . 3 9 3 5 4 3 6 . Penetration Max 1 | . . . . . . 1 1 . . . . . . . 1 1 1 . . Secondary Targets 18 | . . . . . 1 . 2 . . . . . 4 2 1 5 3 . . Max Gunslinging Chain 1 | . . . . . 1 . 1 . . . . . 1 1 1 1 1 . . Shots Hit Robots 841 | 16 2 46 67 1 45 14 35 21 1 12 . 26 131 25 90 174 100 35 . Core Hits 399 | 9 1 9 2 . 19 1 22 8 1 4 . 7 62 14 38 89 80 33 . Critical Kills 17 | 1 . 1 . . 2 . 4 1 . . . . 2 . 1 1 4 . . Critical Parts Destroyed 6 | . . . . . 2 . . . . . . 1 . 1 1 . 1 . . Critical Strikes 41 | 1 . 1 . . 4 2 4 1 . . . 1 13 4 3 1 6 . . Burn 14 | . . . . . . . . . . . . . 11 2 1 . . . . Meltdown 2 | . . 1 . . . . . . . . . . . . . . 1 . . Destroy 23 | 1 . . . . 3 2 4 1 . . . 1 2 2 2 1 4 . . Corrupt 1 | . . . . . . . . . . . . . . . . . 1 . . Smash 1 | . . . . . 1 . . . . . . . . . . . . . . Melee Attacks 120 | . . 9 64 1 2 3 . . 1 12 . 17 8 . . . . 3 . Impact 14 | . . 9 . . 2 3 . . . . . . . . . . . . . Slashing 30 | . . . . . . . . . 1 12 . 17 . . . . . . . Piercing 3 | . . . . . . . . . . . . . . . . . . 3 . Sneak Attacks 73 | . . . 61 1 1 . . . 1 . . 1 8 . . . . . . Combat Hostiles . | . . . . . . . . . . . . . . . . . . . . Follow-up Attacks . | . . . . . . . . . . . . . . . . . . . . Damage Inflicted 28745 | 147 27 989 83 . 1474 534 1432 508 97 1093 . 958 3885 1108 3340 6105 4933 2032 . Guns 18445 | 147 27 . . . 1051 428 1432 473 . . . 780 2777 765 2725 4837 2338 665 . Cannons 2475 | . . 989 83 . 180 106 . 35 . . . . 502 . 225 70 73 212 . Explosions 6223 | . . . . . 114 . . . . . . . 606 343 390 1187 2503 1080 . Melee 1541 | . . . . . 98 . . . 97 1093 . 178 . . . . . 75 . Ramming 61 | . . . . . 31 . . . . . . . . . . 11 19 . . Kinetic 6947 | 147 27 . . . 1231 534 1432 473 . . . . . . 217 1149 1620 117 . Thermal 13754 | . . 989 83 . 114 . . . . . . 780 3279 765 2733 3758 640 613 . Explosive 5440 | . . . . . . . . . . . . . 606 343 390 1111 2503 487 . Electromagnetic 1002 | . . . . . . . . 35 . . . . . . . 76 151 740 . Impact 98 | . . . . . 98 . . . . . . . . . . . . . . Slashing 1368 | . . . . . . . . . 97 1093 . 178 . . . . . . . Piercing 75 | . . . . . . . . . . . . . . . . . . 75 . Highest Corruption 13 | . . . . . 3 . 8 8 8 8 8 8 11 11 2 13 5 7 7 Average Corruption 7 | . . . . . 1 . 6 8 8 8 8 5 9 11 1 7 5 6 7 Corruption Purged 10 | . . . . . 5 . . . . . . 5 . . . . . . . Corruption Blocked . | . . . . . . . . . . . . . . . . . . . . Effects 219 | . . . . . 6 . 1 15 5 8 7 17 53 20 . 42 18 26 1 Message Errors 44 | . . . . . 1 . . 3 2 1 2 1 12 3 . 9 4 6 . Matter Fused 55 | . . . . . 1 . . 2 . 4 3 5 14 6 . 8 6 5 1 Heat Flow Errors 26 | . . . . . 2 . . 3 1 . . 5 4 3 . 3 1 4 . Energy Discharges 24 | . . . . . 1 . . 2 2 1 . 2 5 2 . 4 3 2 . Parts Rejected 5 | . . . . . . . . . . . . 2 1 . . 1 . 1 . Parts Fused 2 | . . . . . . . 1 1 . . . . . . . . . . . Data Loss (minor) 22 | . . . . . . . . 1 . 1 1 . 7 3 . 4 1 4 . Data Loss (major) 10 | . . . . . 1 . . . . . . 1 2 1 . 4 . 1 . Misfires 11 | . . . . . . . . . . 1 . . 2 2 . 2 1 3 . Alerts 9 | . . . . . . . . 1 . . 1 1 4 . . 1 1 . . Weapon Failures 11 | . . . . . . . . 2 . . . . 2 . . 6 1 . . Overload Shots 10 | . . . . . . . . . . . . . 6 . . 4 . . . Effects 1 | . . . . . . . . . . . . . 1 . . . . . . Short Circuit 1 | . . . . . . . . . . . . . 1 . . . . . . Overflow Damage 469 | . . . . . 114 . . . . 200 . 68 . . 6 14 40 27 . Projectiles . | . . . . . . . . . . . . . . . . . . . . Explosions 87 | . . . . . . . . . . . . . . . 6 14 40 27 . Melee 382 | . . . . . 114 . . . . 200 . 68 . . . . . . . Knockbacks 1 | . . . . . 1 . . . . . . . . . . . . . . Impact 1 | . . . . . 1 . . . . . . . . . . . . . . Kinetic . | . . . . . . . . . . . . . . . . . . . . Secondary . | . . . . . . . . . . . . . . . . . . . . Self-Inflicted Damage 317 | . . . . . 115 . . . . . . . . . . 29 52 121 . Shots 8 | . . . . . 1 . . . . . . . . . . 2 2 3 . Rammed 1 | . . . . . 1 . . . . . . . . . . . . . . Targets Rammed 4 | . . . . . 1 . . . . . . . . . . 2 1 . . Kicked 3 | . . . . . . . . . . . . . . . . 2 1 . . Crushed . | . . . . . . . . . . . . . . . . . . . . Highest Temperature 403 | . 18 303 44 . 260 84 300 171 185 . . 200 338 308 2 403 123 263 . Average Temperature 88 | . 13 82 20 . 37 23 68 61 101 . . 113 153 138 2 88 39 172 . Received Heat Transfer 2911 | . . 204 30 . 130 . 504 81 . . 27 117 280 61 488 503 243 243 . Effects 3 | . . . . . . . . . . . . . . . . 3 . . . Interference 3 | . . . . . . . . . . . . . . . . 3 . . . Siege Activations 1 | . . . . . . . . . . . . . . 1 . . . . . Total Turns 24 | . . . . . . . . . . . . . . 24 . . . . . Longest Duration 24 | . . . . . . . . . . . . . . 24 . . . . . Martial Activations . | . . . . . . . . . . . . . . . . . . . . Shielding Activations . | . . . . . . . . . . . . . . . . . . . . Robots Disrupted . | . . . . . . . . . . . . . . . . . . . . Combat Hostiles . | . . . . . . . . . . . . . . . . . . . . Robots Corrupted 2 | . . . . . 1 . . . . . . . . . . . . 1 . Combat Hostiles 1 | . . . . . . . . . . . . . . . . . . 1 . Parts Fried 4 | . . . . . 2 . . . . . . . . . . . . 2 . Impact Corruptions 4 | . . . . . 4 . . . . . . . . . . . . . . Robots Melted 9 | . . 2 . . . . . . . . . . 4 . 1 1 1 . . Combat Hostiles 9 | . . 2 . . . . . . . . . . 4 . 1 1 1 . . Parts Melted 59 | . . 6 . . . . . . . . . 2 23 2 11 13 2 . . Heat Transferred 19690 | . . 1554 130 . 50 . . . . . . 1059 6223 1213 3339 4749 814 559 . Parts Sabotaged 7 | . . . . . . . 7 . . . . . . . . . . . . Parts Stolen . | . . . . . . . . . . . . . . . . . . . . Parts Stripped . | . . . . . . . . . . . . . . . . . . . . Power Chain Reactions 3 | . . . . . . . . . . . . . . . . . . 3 . Alert | -11 -10 -10 -7 -7 -5 -5 -5 -5 -5 -5 -4 -4 -4 -4 -3 -3 -2 -2 -2 ------- Run | Yrd Mat Sub Rec Scr Fac Was Fac Upp Upp Zhi Pro Fac Ext Cet Res Tes Res Qua Frg Maximum Alert Level 4 | . . . . . . . 4 . . . . . 2 1 3 3 3 2 1 Low Security (%) 43 | 100 100 . 100 . 100 100 8 . . . . 100 49 18 1 . . . . Level 1 16 | . . . . . . . 10 . . . . . 27 81 27 15 . 29 100 Level 2 28 | . . . . . . . 3 . . . . . 22 . 34 75 90 70 . Level 3 10 | . . . . . . . 66 . . . . . . . 36 9 9 . . Level 4 . | . . . . . . . 11 . . . . . . . . . . . . Level 5 . | . . . . . . . . . . . . . . . . . . . . High Security . | . . . . . . . . . . . . . . . . . . . . Max Security . | . . . . . . . . . . . . . . . . . . . . Peak Influence 1218 | 15 7 . 73 . 126 58 1218 . . . . 134 576 348 819 859 1080 620 306 Initial 603 | . . . . . . 30 . . . . . 63 30 296 192 436 461 603 281 Average 318 | 2 . . 12 . 51 6 764 . . . . 85 236 264 550 556 592 460 278 Influence Increases 8955 | 25 22 30 296 . 359 78 1824 65 15 15 180 520 1176 376 1325 1031 1079 494 45 Destroy 0b10 Robot/C 3500 | . . . 140 . 140 . 520 20 . . . 160 640 160 520 600 440 160 . Destroy 0b10 Robot/NC 325 | 25 5 . 60 . 15 . 60 5 . 15 . 15 20 10 25 30 35 5 . Destroy Leader 654 | . 2 . . . 30 . 122 10 . . . 42 82 . 152 92 110 12 . Allied During Kill 1416 | . . . 59 . 6 . 639 . . . . 15 196 127 374 . . . . Successful Hack 243 | . 15 . 16 . 18 . 5 . . . . . 54 15 44 21 41 14 . Disable Machine 435 | . . . . . 60 . 60 . . . . 15 30 . 60 120 30 60 . Destroy Structure 1347 | . . . 21 . 60 78 238 . . . . 48 124 64 90 138 378 108 . Partial Spotted 120 | . . . . . . . . . . . . 90 . . . 15 15 . . Lose Combat Pursuer 915 | . . 30 . . 30 . 180 30 15 . 180 135 30 . 60 15 30 135 45 Influence Decreases 8659 | 25 22 30 296 . 273 164 606 678 186 449 80 557 709 586 868 987 826 1067 250 Entered New Map 2882 | . . . . . . 56 . 452 116 434 . 37 33 234 128 341 360 471 220 Time Decay 4407 | 25 22 30 208 . 261 108 316 206 60 15 70 380 556 262 550 506 416 386 30 Lost Part 670 | . . . . . . . 30 20 10 . 10 40 40 10 110 140 50 210 . Lost Ally 700 | . . . 88 . 12 . 260 . . . . 100 80 80 80 . . . . Squads Dispatched 52 | . . . . . 7 . 11 . . . . 5 4 . 3 9 6 7 . Investigation 17 | . . . . . 3 . 5 . . . . 3 3 . 1 1 1 . . Extermination 12 | . . . . . 2 . 1 . . . . 2 . . . 2 2 3 . Reinforcement 17 | . . . . . 2 . 3 . . . . . 1 . 2 3 2 4 . Assault 2 | . . . . . . . 1 . . . . . . . . . 1 . . Garrison 4 | . . . . . . . 1 . . . . . . . . 3 . . . Intercept . | . . . . . . . . . . . . . . . . . . . . Searches Triggered . | . . . . . . . . . . . . . . . . . . . . Construction Impeded 4 | . . . . . . . 1 . . . . . 1 . . 1 1 . . Haulers Reinforced . | . . . . . . . . . . . . . . . . . . . . Active Scanning Responses . | . . . . . . . . . . . . . . . . . . . . Cargo Convoy Interrupts 1 | . . . . . . . 1 . . . . . . . . . . . . Stealth | -11 -10 -10 -7 -7 -5 -5 -5 -5 -5 -5 -4 -4 -4 -4 -3 -3 -2 -2 -2 --------- Run | Yrd Mat Sub Rec Scr Fac Was Fac Upp Upp Zhi Pro Fac Ext Cet Res Tes Res Qua Frg Distress Signals 18 | . . . . . . . 3 . . . . 3 . 2 6 2 1 . 1 Communications Jammed . | . . . . . . . . . . . . . . . . . . . . Distress Signals . | . . . . . . . . . . . . . . . . . . . . Times Spotted 337 | . 2 11 6 . 9 5 47 4 5 . 13 38 38 10 42 43 34 25 5 Peak Tracking Total 15 | . 1 2 2 . 4 2 15 2 4 . 10 14 6 5 8 5 6 8 8 Tactical Retreats 27 | . . 1 . . 1 . 3 1 1 . 5 4 2 . 2 1 1 4 1 Traps | -11 -10 -10 -7 -7 -5 -5 -5 -5 -5 -5 -4 -4 -4 -4 -3 -3 -2 -2 -2 ------- Run | Yrd Mat Sub Rec Scr Fac Was Fac Upp Upp Zhi Pro Fac Ext Cet Res Tes Res Qua Frg Traps Triggered 3 | . . . . . 2 . . . . . . . . . . . . 1 . Indirectly . | . . . . . . . . . . . . . . . . . . . . Trap Hack Attempts . | . . . . . . . . . . . . . . . . . . . . Triggered . | . . . . . . . . . . . . . . . . . . . . Disarmed . | . . . . . . . . . . . . . . . . . . . . Reprogrammed . | . . . . . . . . . . . . . . . . . . . . Reused . | . . . . . . . . . . . . . . . . . . . . Traps Extracted . | . . . . . . . . . . . . . . . . . . . . Installed . | . . . . . . . . . . . . . . . . . . . . Triggered . | . . . . . . . . . . . . . . . . . . . . Most Traps Carried 5 | . . . . . . . . 5 5 5 5 . . . . . . . . Machines | -11 -10 -10 -7 -7 -5 -5 -5 -5 -5 -5 -4 -4 -4 -4 -3 -3 -2 -2 -2 ---------- Run | Yrd Mat Sub Rec Scr Fac Was Fac Upp Upp Zhi Pro Fac Ext Cet Res Tes Res Qua Frg Machines Disabled 32 | . . 1 . . 4 . 4 1 . 1 . 1 2 . 4 8 2 4 . Max in Single Turn 2 | . . 1 . . 2 . 1 1 . 1 . . 1 . 1 2 1 2 . Garrison Access 4 | . . . . . 1 . . . . . . . . . 3 . . . . Machines Repaired . | . . . . . . . . . . . . . . . . . . . . Machines Dismantled . | . . . . . . . . . . . . . . . . . . . . Machines Sabotaged . | . . . . . . . . . . . . . . . . . . . . Overloaded Fab Kills . | . . . . . . . . . . . . . . . . . . . . Hacking | -11 -10 -10 -7 -7 -5 -5 -5 -5 -5 -5 -4 -4 -4 -4 -3 -3 -2 -2 -2 --------- Run | Yrd Mat Sub Rec Scr Fac Was Fac Upp Upp Zhi Pro Fac Ext Cet Res Tes Res Qua Frg Machines Accessed 81 | . 3 1 6 4 6 . 8 . . 6 . 6 12 2 10 8 5 3 1 Terminals 44 | . 3 . 6 . 1 . 4 . . . . 1 11 2 3 5 5 3 . Fabricators 5 | . . . . . 1 . . . . . . 1 . . 2 1 . . . Repair Stations 1 | . . . . . . . . . . . . . . . . . . . 1 Recycling Units 11 | . . . . . 3 . 4 . . . . 3 1 . . . . . . Scanalyzers 3 | . . . . . . . . . . . . . . . 2 1 . . . Garrison Access 6 | . . . . . 1 . . . . . . 1 . . 3 1 . . . Total Hacks 192 | . 15 1 14 17 14 . 17 . . 19 . 10 23 7 21 16 11 6 1 Successful 99 | . 6 1 5 17 7 . 7 . . 19 . 6 9 3 10 3 3 3 . Failed 92 | . 8 . 9 . 7 . 10 . . . . 4 14 4 11 13 8 3 1 Catastrophic 21 | . 1 . 2 . . . 1 . . . . 1 2 1 3 3 5 1 1 Database Lockouts 1 | . 1 . . . . . . . . . . . . . . . . . . Manual 60 | . 9 . 8 . 10 . 13 . . . . 5 4 1 2 1 4 3 . Terminals 102 | . 15 . 14 . 3 . 7 . . . . 2 22 7 5 10 11 6 . Fabricators 9 | . . . . . 1 . . . . . . 2 . . 4 2 . . . Repair Stations 1 | . . . . . . . . . . . . . . . . . . . 1 Recycling Units 24 | . . . . . 8 . 10 . . . . 5 1 . . . . . . Scanalyzers 8 | . . . . . . . . . . . . . . . 7 1 . . . Garrison Access 11 | . . . . . 2 . . . . . . 1 . . 5 3 . . . Terminal Hacks 70 | . 5 1 3 17 1 . 2 . . 19 . 1 8 3 2 3 2 3 . Record 28 | . . . . 17 . . 1 . . 7 . . . 2 . . . 1 . Part Schematic 4 | . . . . . . . . . . 4 . . . . . . . . . Robot Analysis 5 | . 1 . . . . . . . . 4 . . . . . . . . . Prototype ID Bank 6 | . 1 . 1 . . . . . . 4 . . . . . . . . . Open Door 10 | . . . . . . . . . . . . 1 7 1 . 1 . . . Level Access Points 1 | . . . . . . . . . . . . . . . . . 1 . . Branch Access Points 1 | . . . . . . . . . . . . . . . 1 . . . . Emergency Access Points 3 | . . . . . . . . . . . . . . . . 2 . 1 . Terminal Index 1 | . . . 1 . . . . . . . . . . . . . . . . Recycling Unit Index 1 | . . . . . . . . . . . . . . . 1 . . . . Alert Level 2 | . . . . . . . 1 . . . . . . . . . 1 . . Locate Traps 4 | . 1 . . . 1 . . . . . . . 1 . . . . 1 . Security Status 1 | . 1 . . . . . . . . . . . . . . . . . . Zone Layout 2 | . 1 . 1 . . . . . . . . . . . . . . . . Proto ID Catalog 1 | . . 1 . . . . . . . . . . . . . . . . . Fabricator Hacks 2 | . . . . . . . . . . . . 1 . . 1 . . . . Network Status 2 | . . . . . . . . . . . . 1 . . 1 . . . . Repair Station Hacks . | . . . . . . . . . . . . . . . . . . . . Recycling Unit Hacks 1 | . . . . . . . . . . . . 1 . . . . . . . Report Inventory 1 | . . . . . . . . . . . . 1 . . . . . . . Scanalyzer 4 | . . . . . . . . . . . . . . . 4 . . . . Retrieve Study 4 | . . . . . . . . . . . . . . . 4 . . . . Garrison Access Hacks 4 | . . . . . 1 . . . . . . . . . 3 . . . . Seal Access 4 | . . . . . 1 . . . . . . . . . 3 . . . . Unauthorized Hacks 18 | . 1 . 2 . 5 . 5 . . . . 3 1 . . . 1 . . Terminals 6 | . 1 . 2 . 1 . 1 . . . . . . . . . 1 . . Botnet 6 | . 1 . 2 . 1 . 1 . . . . . . . . . 1 . . Fabricators 1 | . . . . . 1 . . . . . . . . . . . . . . Fabnet 1 | . . . . . 1 . . . . . . . . . . . . . . Repair Stations . | . . . . . . . . . . . . . . . . . . . . Recycling Units 11 | . . . . . 3 . 4 . . . . 3 1 . . . . . . Fedlink 10 | . . . . . 3 . 4 . . . . 2 1 . . . . . . Scrapoids 1 | . . . . . . . . . . . . 1 . . . . . . . Scanalyzers . | . . . . . . . . . . . . . . . . . . . . Garrison Access . | . . . . . . . . . . . . . . . . . . . . Data Cores Recovered 2 | . . . . . . . . . . . . 1 . . . 1 . . . Used . | . . . . . . . . . . . . . . . . . . . . Hacking Detections 55 | . 3 . 6 . 3 . 6 . . . . 2 9 2 9 7 5 2 1 Full Trace Events 5 | . . . . . . . . . . . . . 2 . 1 1 1 . . Feedback Events . | . . . . . . . . . . . . . . . . . . . . Feedback Blocked . | . . . . . . . . . . . . . . . . . . . . Robot Schematics Acquired . | . . . . . . . . . . . . . . . . . . . . Robots Built . | . . . . . . . . . . . . . . . . . . . . Authchips . | . . . . . . . . . . . . . . . . . . . . Time . | . . . . . . . . . . . . . . . . . . . . Total Robot Build Rating . | . . . . . . . . . . . . . . . . . . . . Part Schematics Acquired 9 | . . . . . . . . . . 4 . . . . . 3 . 2 . Parts Built . | . . . . . . . . . . . . . . . . . . . . Authchips . | . . . . . . . . . . . . . . . . . . . . Time . | . . . . . . . . . . . . . . . . . . . . Total Part Build Rating . | . . . . . . . . . . . . . . . . . . . . Part Studies Acquired 4 | . . . . . . . . . . . . . . . 4 . . . . Parts Repaired . | . . . . . . . . . . . . . . . . . . . . Time . | . . . . . . . . . . . . . . . . . . . . Parts Recycled . | . . . . . . . . . . . . . . . . . . . . Recycled Matter . | . . . . . . . . . . . . . . . . . . . . Retrieved Matter . | . . . . . . . . . . . . . . . . . . . . Retrieved Components . | . . . . . . . . . . . . . . . . . . . . Parts Scanalyzed . | . . . . . . . . . . . . . . . . . . . . Part Schematics Acquired . | . . . . . . . . . . . . . . . . . . . . Parts Damaged . | . . . . . . . . . . . . . . . . . . . . Bothacking | -11 -10 -10 -7 -7 -5 -5 -5 -5 -5 -5 -4 -4 -4 -4 -3 -3 -2 -2 -2 ------------ Run | Yrd Mat Sub Rec Scr Fac Was Fac Upp Upp Zhi Pro Fac Ext Cet Res Tes Res Qua Frg Used RIF Installer . | . . . . . . . . . . . . . . . . . . . . Robots Hacked 5 | . . . 4 1 . . . . . . . . . . . . . . . Non-combat 4 | . . . 4 . . . . . . . . . . . . . . . . Combat 1 | . . . . 1 . . . . . . . . . . . . . . . Robot Hacks Applied 8 | . . . 7 1 . . . . . . . . . . . . . . . parse_system 7 | . . . 6 1 . . . . . . . . . . . . . . . find_recycling 1 | . . . 1 . . . . . . . . . . . . . . . . Relay Couplers Released 1 | . . . . . . . . . . . . . . . 1 . . . . Machine Destruction 1 | . . . . . . . . . . . . . . . 1 . . . . Fabnet Peak Effective % . | . . . . . . . . . . . . . . . . . . . . Robots Rewired 25 | . . . 21 . . . . . . . . . 4 . . . . . . Allies Hacked 1 | . . . 1 . . . . . . . . . . . . . . . . Hacks Repelled . | . . . . . . . . . . . . . . . . . . . . Allies | -11 -10 -10 -7 -7 -5 -5 -5 -5 -5 -5 -4 -4 -4 -4 -3 -3 -2 -2 -2 -------- Run | Yrd Mat Sub Rec Scr Fac Was Fac Upp Upp Zhi Pro Fac Ext Cet Res Tes Res Qua Frg Total Allies 62 | . . . 21 . . 19 . . . . . 5 12 5 . . . . . Largest Group 19 | . . . 17 10 8 19 18 . . . . 5 9 9 5 . . . . Highest-Rated Group 750 | . . . 403 245 205 684 650 . . . . 241 521 750 327 . . . . Highest-Rated Ally 159 | . . . 40 40 40 50 50 . . . . 50 159 151 96 . . . . Initial UFD Resources 87 | . . . . . 39 55 55 63 63 63 66 66 77 79 83 83 87 87 87 Total Orders 1 | . . . 1 . . . . . . . . . . . . . . . . GUARD 1 | . . . 1 . . . . . . . . . . . . . . . . Ally Attacks 677 | . . . 31 . 7 175 146 . . . . 49 100 61 108 . . . . Total Damage 19660 | . . . 1174 . 98 4870 4304 . . . . 1030 2618 1698 3868 . . . . Kills 100 | . . . 14 . . 7 32 . . . . 6 14 8 19 . . . . Allies Corrupted . | . . . . . . . . . . . . . . . . . . . . Allies Melted . | . . . . . . . . . . . . . . . . . . . . Intel | -11 -10 -10 -7 -7 -5 -5 -5 -5 -5 -5 -4 -4 -4 -4 -3 -3 -2 -2 -2 ------- Run | Yrd Mat Sub Rec Scr Fac Was Fac Upp Upp Zhi Pro Fac Ext Cet Res Tes Res Qua Frg Active Infowar (turns) 11171 | 6 399 602 . . 806 937 691 . . 11 5 768 1630 562 1593 1361 1001 799 . Optics 7951 | . . . . . 244 . . . . . . 761 1630 562 1593 1361 1001 799 . Sensors 1037 | . . . . . 434 587 . . . 11 5 . . . . . . . . IFF 527 | . . . . . . . . . . . . . . . 527 . . . . Seismic 1261 | 6 399 602 . . 254 . . . . . . . . . . . . . . Machine Analysis 2434 | . . . . . 806 937 691 . . . . . . . . . . . . Jamming 140 | . . . . . . . . . . . . 7 . . 133 . . . . Robot Analysis Total 5 | . 1 . . . . . . . . 4 . . . . . . . . . Derelict Logs Recovered 10 | . . 2 . 5 . . . . 1 . 2 . . . . . . . . Drone Launches . | . . . . . . . . . . . . . . . . . . . . Drone Recoveries . | . . . . . . . . . . . . . . . . . . . . Exploration | -11 -10 -10 -7 -7 -5 -5 -5 -5 -5 -5 -4 -4 -4 -4 -3 -3 -2 -2 -2 ------------- Run | Yrd Mat Sub Rec Scr Fac Was Fac Upp Upp Zhi Pro Fac Ext Cet Res Tes Res Qua Frg Turns Passed 16855 | 130 399 2068 1220 1519 806 937 735 434 136 215 243 893 1630 562 1593 1361 1001 911 62 Spaces Moved 13126 | 72 360 1689 939 1366 573 525 542 724 210 186 504 1208 977 305 890 615 698 645 98 Core 369 | 1 . . . . . . 47 . . . . . . . . . . 223 98 Treads 2056 | . . . . . . . . . . . . . 666 305 890 195 . . . Legs 2823 | . . . . . 313 525 465 . . . . . . . . 400 698 422 . Wheels 4705 | 71 360 1689 939 1366 260 . . . . . . . . . . 20 . . . Hover 2105 | . . . . . . . . . . 82 504 1208 311 . . . . . . Flight 1068 | . . . . . . . 30 724 210 104 . . . . . . . . . Fastest Speed 28 | 50 100 100 100 100 100 120 36 39 39 39 42 28 28 155 145 117 110 50 50 Average Speed 102 | 99 100 110 106 108 113 120 109 39 42 40 42 50 127 159 153 151 114 108 50 Slowest Speed 320 | 100 100 115 115 115 190 120 120 45 119 100 42 102 240 160 160 320 118 190 50 Overloaded Moves . | . . . . . . . . . . . . . . . . . . . . Propulsion Burnouts . | . . . . . . . . . . . . . . . . . . . . Robots Hopped 1 | . . . . . . . . 1 . . . . . . . . . . . Potential Cave-ins 8 | . . . . . 6 . 1 . . . . . . . . . 1 . . Cave-ins Triggered 2 | . . . . . . . 1 . . . . . . . . . 1 . . Teleports 1 | . . . . . . . . . . . . 1 . . . . . . . Exploration Rate (%) 54 | 4 57 85 95 88 15 96 14 66 41 62 69 31 87 90 30 61 21 66 5 Regions Visited 19 Branch Regions 12 Pre-discovered Areas 6 | . . . . 1 1 . . . . 3 1 . . . . . . . . Known Exits Taken 5 | . . . . . . . 1 . . . 1 . . 1 1 . 1 . . Unknown Exits Taken 12 | 1 1 1 1 1 . . . 1 1 1 . 1 1 . . 1 . 1 . Scrap Searched 17 | . . 11 . 4 . . . 1 1 . . . . . . . . . . Spaces Dug 123 | . . 14 . . 1 15 14 . . . . 9 1 . 4 40 10 15 . Terrain Destroyed 629 | . . 18 . . 38 20 51 9 . . . 17 74 58 25 91 183 45 . Melee 22 | . . 9 . . 1 3 . . . . . 9 . . . . . . . Projectile 179 | . . 9 . . 11 17 51 9 . . . 8 9 1 9 16 22 17 . AOE 428 | . . . . . 26 . . . . . . . 65 57 16 75 161 28 . Terrain Rammed . | . . . . . . . . . . . . . . . . . . . . Walls Destroyed . | . . . . . . . . . . . . . . . . . . . . Machines Disabled . | . . . . . . . . . . . . . . . . . . . . Actions | -11 -10 -10 -7 -7 -5 -5 -5 -5 -5 -5 -4 -4 -4 -4 -3 -3 -2 -2 -2 --------- Run | Yrd Mat Sub Rec Scr Fac Was Fac Upp Upp Zhi Pro Fac Ext Cet Res Tes Res Qua Frg Total 15437 | 98 393 1804 1155 1402 671 800 623 837 252 305 534 1427 1226 354 1002 841 814 788 111 Wait 1062 | . 22 17 141 10 19 242 15 74 38 99 31 122 106 14 5 42 . 54 11 Move 13105 | 71 359 1688 938 1365 573 524 541 721 209 185 503 1207 976 304 889 614 696 644 98 Hop 1 | . . . . . . . . 1 . . . . . . . . . . . Pick Up 105 | 5 4 13 2 9 12 3 3 1 . 1 . 7 9 3 7 8 8 10 . Fast Attach 138 | 6 1 2 1 1 12 1 6 4 3 5 . 26 14 6 9 31 7 3 . Attach 61 | . . 2 . . 8 . 1 1 . 1 . 4 1 1 8 11 11 11 1 Detach 20 | . . . . . 2 . . . . . . 3 1 1 2 4 4 2 1 Swap 93 | . 1 10 2 2 3 4 8 . . . . 4 15 4 9 15 8 8 . Drop 155 | . 2 9 3 14 13 4 12 1 1 2 . 12 23 7 13 21 11 7 . Fire 565 | 16 4 54 4 . 26 19 34 34 . . . 25 73 14 60 93 67 42 . Melee 120 | . . 9 64 1 2 3 . . 1 12 . 17 8 . . . . 3 . Ram 1 | . . . . . 1 . . . . . . . . . . . . . . Kick 3 | . . . . . . . . . . . . . . . . 2 1 . . Crush . | . . . . . . . . . . . . . . . . . . . . Escape Stasis 8 | . . . . . . . 3 . . . . . . . . . 1 4 . Rewire . | . . . . . . . . . . . . . . . . . . . . Trap . | . . . . . . . . . . . . . . . . . . . . Miscellaneous . | . . . . . . . . . . . . . . . . . . . . Route ------- -11/Scrapyard -10/Materials (discovered 3 exits: [*Mat] / [*Min] / *Sub) -10/Subcaves (discovered 3 exits: *Mat x2 / *Rec) -7/Recycling (discovered 2 exits: *Fac / *Scr) -7/Scraptown (discovered 2 exits: *Fac x2) -5/Factory (discovered 2 exits: Fac / Upp) -5/Waste -5/Factory (discovered 2 exits: *Fac / *Upp) -5/Upper Caves -5/Upper Caves -5/Zhirov -4/Proximity Caves -4/Factory (discovered 3 exits: Res x2 / *Ext) -4/Extension (discovered 3 exits: *Res x2 / *Cet) -4/Cetus (discovered 3 exits: *Res x2 / [*Arc]) -3/Research (discovered 5 exits: *Res x2 / Arm / *Tes x2) -3/Testing -2/Research (discovered 4 exits: *Acc x3 / *Qua) -2/Quarantine (discovered 3 exits: *Acc / [*Sec] / *Frg) -2/Protoforge History --------- Turn | Location | Event 24 | -11/Scrapyard | Discovered new exit (range 15) 131 | -11/Scrapyard | Entered Materials 156 | -10/Materials | Discovered new exit (range 16) 274 | -10/Materials | Central database locked down 309 | -10/Materials | Build established: Mutant 428 | -10/Materials | Discovered new exit (range 9) 516 | -10/Materials | Discovered new exit (range 3) 530 | -10/Materials | Entered Subcaves 549 | -10/Subcaves | Identified exit to Materials 608 | -10/Subcaves | Shifting Twisted Machinery released Sub. Machine Gun 610 | -10/Subcaves | Shifting Twisted Machinery released Sub. Shrapnel Launcher 705 | -10/Subcaves | Discovered new exit (range 10) 1429 | -10/Subcaves | Core integrity fell below 50% 1524 | -10/Subcaves | Discovered exit to Materials (range 6) 2235 | -10/Subcaves | Visited 4L-MR0's lab 2246 | -10/Subcaves | Found Tower Shield 2598 | -10/Subcaves | Entered Recycling 2745 | -7/Recycling | Discovered new exit (range 12) 2849 | -7/Recycling | Scanned before Scraplab entrance 3440 | -7/Recycling | Build established: Commander-Mutant 3629 | -7/Recycling | Lost 6 allies 3709 | -7/Recycling | Entered Scraplab 3720 | -7/Recycling | Discovered new exit (range 3) 3818 | -7/Recycling | Entered Scraptown 3818 | -7/Scraptown | Accompanied by 10 allies 3869 | -7/Scraptown | Heard Great Nut preacher, LISTEN AND RECITE! 4022 | -7/Scraptown | Visited Assassins FH 4044 | -7/Scraptown | Visited Spacefarers 4053 | -7/Scraptown | Visited Cave Peace 4066 | -7/Scraptown | Visited IN-MT5's Study 4089 | -7/Scraptown | Visited Symbiants 4113 | -7/Scraptown | Scanned Subdweller tech in exchange for log data 4115 | -7/Scraptown | Learned Factory emergency access door positions 4117 | -7/Scraptown | Learned location of Quarantine (-2) 4118 | -7/Scraptown | Learned 12 Factory zone layouts 4119 | -7/Scraptown | Learned Research terminal intel 4498 | -7/Scraptown | Visited CPS Storage 4508 | -7/Scraptown | Visited Awakened 4561 | -7/Scraptown | Discovered new exit (range 11) 4678 | -7/Scraptown | Visited UFD Registry 4691 | -7/Scraptown | Registered with UFD as "Hammersourcer" 4763 | -7/Scraptown | Visited Scrap Suit Storage 4768 | -7/Scraptown | Found Scrap Suit 4807 | -7/Scraptown | Visited Curators Association 4848 | -7/Scraptown | Visited Junk Repository 4904 | -7/Scraptown | Visited Junk Cannon Lab 4939 | -7/Scraptown | Visited Derelict Rescue Squad 4955 | -7/Scraptown | Found DRS Beacon 4977 | -7/Scraptown | Visited Abandonware Association 4990 | -7/Scraptown | Learned abandonware demo "REPAIR.EXE" 5095 | -7/Scraptown | Visited Research Penetration Think Tank 5120 | -7/Scraptown | Visited Scrapoid Research Area 5253 | -7/Scraptown | Met Optimus 5253 | -7/Scraptown | Accepted into 0bPrime 5326 | -7/Scraptown | Discovered new exit (range 5) 5337 | -7/Scraptown | Entered Factory 5337 | -5/Factory | Accompanied by 8 allies 5337 | -5/Factory | Evolved 10 slots: Propulsion x3, Utility x6, Weapon x1 5338 | -5/Factory | Identified exit to Upper Caves 5339 | -5/Factory | Identified exit to Factory 5613 | -5/Factory | Lost 3 allies 5624 | -5/Factory | Lost 4 parts (1p1n2u) 5890 | -5/Factory | Loaded intel: 8 recycling unit locations 5980 | -5/Factory | Build established: Scavenger-Skirmisher 5998 | -5/Factory | Learned location of Protoforge (-2) 6143 | -5/Factory | Sucked down chute 6143 | -5/Factory | Entered Waste 6157 | -5/Waste | Spotted C-40 Crusher 6199 | -5/Waste | Spotted C-40 Crusher 6221 | -5/Waste | Spotted C-40 Crusher 6287 | -5/Waste | Spotted C-40 Crusher 6320 | -5/Waste | Spotted C-40 Crusher 6324 | -5/Waste | Build established: Scavenger-Assassin 6648 | -5/Waste | Spotted C-40 Crusher 6682 | -5/Waste | Warlord forces began an assault 6735 | -5/Waste | Allies destroyed C-40 Crusher 6741 | -5/Waste | Allies destroyed C-40 Crusher 6741 | -5/Waste | Allies destroyed C-40 Crusher 6770 | -5/Waste | Allies destroyed C-40 Crusher 6790 | -5/Waste | Allies destroyed C-40 Crusher 6807 | -5/Waste | Allies destroyed C-40 Crusher 6979 | -5/Waste | Discovered new exit (range 16) 7026 | -5/Waste | Build established: Scavenger-Gunner 7078 | -5/Waste | Identified exit to Factory 7080 | -5/Waste | Entered Factory 7080 | -5/Factory | Accompanied by 18 allies 7125 | -5/Factory | Loaded intel: 8 recycling unit locations 7131 | -5/Factory | Discovered exit to Upper Caves (range 11) 7241 | -5/Factory | Discovered exit to Factory (range 15) 7275 | -5/Factory | Lost 6 allies 7621 | -5/Factory | Lost 3 allies 7680 | -5/Factory | First assault squad dispatched 7706 | -5/Factory | Build established: Gunner 7708 | -5/Factory | Garrison activated, responded to threat 7752 | -5/Factory | Crushed by falling debris 7756 | -5/Factory | Cargo convoy interrupted 7770 | -5/Factory | Lost 9 allies 7771 | -5/Factory | Released all parts (7) 7778 | -5/Factory | Core integrity fell below 50% 7801 | -5/Factory | Lost 3 parts (1p2u) 7815 | -5/Factory | Entered Upper Caves 7822 | -5/Upper Caves | Attacked by a delusional Derelict stockpiling parts 8072 | -5/Upper Caves | Build established: Mutant 8245 | -5/Upper Caves | Discovered new exit (range 10) 8249 | -5/Upper Caves | Entered another Upper Caves area 8361 | -5/Upper Caves | Learned location of 2 exits from Factory 8384 | -5/Upper Caves | Discovered new exit (range 2) 8385 | -5/Upper Caves | Attracted the attention of an 0b10 checkpoint 8385 | -5/Upper Caves | Entered Zhirov 8385 | -5/Zhirov | Discovered new exit (range 3) 8393 | -5/Zhirov | Met Zhirov 8400 | -5/Zhirov | Learned location of Testing (-3) 8400 | -5/Zhirov | Learned location of Command (-1) 8408 | -5/Zhirov | Zhirov requested help retrieving the SGEMP Prototype 8416 | -5/Zhirov | Found Alien Artifact 8416 | -5/Zhirov | Identified Integrated Dissipator 8416 | -5/Zhirov | Installed Integrated Dissipator, increased core heat dissipation (+20) 8568 | -5/Zhirov | Found Alien Artifact 8600 | -5/Zhirov | Entered Proximity Caves 8629 | -4/Proximity Caves | Attracted the attention of an 0b10 checkpoint 8786 | -4/Proximity Caves | Learned location of 1 exit from Upper Caves 8808 | -4/Proximity Caves | Lost 3 parts (1n2u) 8838 | -4/Proximity Caves | Discovered exit to Factory (range 8) 8843 | -4/Proximity Caves | Entered Factory 8843 | -4/Factory | Evolved 2 slots: Propulsion x1, Utility x1 8844 | -4/Factory | Identified exit to Research 8939 | -4/Factory | Scrapoids reinforcements arrived? 8958 | -4/Factory | Spotted B-86 Titan 8978 | -4/Factory | Found Scrap Suit 8985 | -4/Factory | Attached Tower Shield, gained temporary slots: Power, Propulsion x2, Utility x2, Weapon x2 9266 | -4/Factory | Loaded intel: 7 recycling unit locations 9514 | -4/Factory | Spotted B-86 Titan 9555 | -4/Factory | Identified Transdimensional Reconstructor 9555 | -4/Factory | Warped through subspace 9573 | -4/Factory | Discovered new exit (range 6) 9736 | -4/Factory | Entered Extension 9783 | -4/Extension | Loaded intel: 1 recycling unit location 9882 | -4/Extension | Rescued a captive Derelict 9895 | -4/Extension | Rescued a captive Derelict 9911 | -4/Extension | Rescued a captive Derelict 9994 | -4/Extension | Lost 3 allies 10010 | -4/Extension | Spotted B-86 Titan 10016 | -4/Extension | Rescued A7 10075 | -4/Extension | Destroyed B-86 Titan 10091 | -4/Extension | Spotted B-86 Titan 10108 | -4/Extension | Destroyed B-86 Titan 10196 | -4/Extension | System corruption reached 10% 10290 | -4/Extension | Build established: Scavenger-Tank 10511 | -4/Extension | Discovered exit to Research (range 3) 10639 | -4/Extension | Discovered new exit (range 20) 10641 | -4/Extension | Discovered exit to Research (range 19) 10811 | -4/Extension | Rescued a captive Derelict 10812 | -4/Extension | Rescued a captive Derelict 10839 | -4/Extension | Rescued a captive Derelict 10901 | -4/Extension | Rescued a captive Derelict 11366 | -4/Extension | Entered Cetus 11366 | -4/Cetus | Accompanied by 7 allies (A7) 11371 | -4/Cetus | Acquired a Cetus Manufacturing Module code from A7 11374 | -4/Cetus | Spotted Cetus Guard 11374 | -4/Cetus | Spotted Cetus Guard 11379 | -4/Cetus | Spotted Cetus Guard 11380 | -4/Cetus | Spotted Cetus Guard 11393 | -4/Cetus | Allies destroyed Cetus Guard 11403 | -4/Cetus | Destroyed Cetus Guard 11409 | -4/Cetus | Destroyed Cetus Guard 11414 | -4/Cetus | Allies destroyed Cetus Guard 11421 | -4/Cetus | Lost 3 allies 11521 | -4/Cetus | Started Cetus Manufacturing Module 11534 | -4/Cetus | Escorted A7 to Cetus Mainframe 11546 | -4/Cetus | Manufactured an Enhanced Grunt 11571 | -4/Cetus | Manufactured an Enhanced Grunt 11596 | -4/Cetus | Manufactured an Enhanced Grunt 11621 | -4/Cetus | Manufactured an Enhanced Grunt 11646 | -4/Cetus | Manufactured an Enhanced Grunt 11660 | -4/Cetus | Discovered exit to Research (range 19) 11822 | -4/Cetus | Discovered new exit (range 19) 11856 | -4/Cetus | Spotted Cetus Guard 11856 | -4/Cetus | Spotted Cetus Guard 11859 | -4/Cetus | Spotted Cetus Guard 11859 | -4/Cetus | Spotted Cetus Guard 11868 | -4/Cetus | Allies destroyed Cetus Guard 11872 | -4/Cetus | Allies destroyed Cetus Guard 11874 | -4/Cetus | Allies destroyed Cetus Guard 11878 | -4/Cetus | Found Prototype Device 11878 | -4/Cetus | Allies destroyed Cetus Guard 11887 | -4/Cetus | Discovered exit to Research (range 20) 11900 | -4/Cetus | Met Revision 17 11928 | -4/Cetus | Entered Research 11928 | -3/Research | Accompanied by 5 allies 11928 | -3/Research | Evolved 2 slots: Power x1, Utility x1 11929 | -3/Research | Loaded intel: 22 terminal locations 11930 | -3/Research | Identified Exp. Thermal Shield 12128 | -3/Research | Revision forces began assault on 0b10 12132 | -3/Research | Met up with Revision 17++ 12205 | -3/Research | Identified exit to Armory 12205 | -3/Research | Identified exit to Testing 12213 | -3/Research | Discovered new exit (range 11) 12365 | -3/Research | Spotted B-86 Titan 12375 | -3/Research | Spotted B-86 Titan 12388 | -3/Research | Destroyed B-86 Titan 12409 | -3/Research | Allies destroyed B-86 Titan 12628 | -3/Research | Research terminal network offline 12721 | -3/Research | Discovered new exit (range 22) 13189 | -3/Research | Lost 8 allies 13258 | -3/Research | Lost 3 allies 13302 | -3/Research | Spotted Striker 13320 | -3/Research | Destroyed Striker 13322 | -3/Research | Spotted Executioner 13334 | -3/Research | Destroyed Executioner 13457 | -3/Research | Spotted Striker 13515 | -3/Research | Found Prototype Processor 13515 | -3/Research | Identified Exp. Core Analyzer 13521 | -3/Research | Entered Testing 13528 | -3/Testing | Lost 9 parts (2p2n3u2w) 13535 | -3/Testing | Spotted PY-AFX6S1X1C0 13828 | -3/Testing | Garrison activated, responded to threat 14053 | -3/Testing | Build established: Scavenger-Gunner 14179 | -3/Testing | System corruption reached 10% 14226 | -3/Testing | Spotted Striker 14252 | -3/Testing | Found Portable AFG 14315 | -3/Testing | Found Prototype Device 14315 | -3/Testing | Identified Adv. Kinecellerator 14346 | -3/Testing | Found Prototype Launcher 14346 | -3/Testing | Identified Smartbomb Launcher 14713 | -3/Testing | Discovered new exit (range 22) 14796 | -3/Testing | Scanned by Researcher 14805 | -3/Testing | Found Prototype Protection 14805 | -3/Testing | Identified SHELL Armor 14828 | -3/Testing | Found Prototype Protection 14839 | -3/Testing | Identified Med. Regenerative Plating 14882 | -3/Testing | Entered Research 14882 | -2/Research | Evolved 2 slots: Utility x1, Weapon x1 14898 | -2/Research | Lost 7 parts (2n1u4w) 15017 | -2/Research | Crushed by falling debris 15167 | -2/Research | Discovered new exit (range 10) 15317 | -2/Research | Identified exit to Access 15382 | -2/Research | First assault squad dispatched 15826 | -2/Research | Destroyed 7 combat bots 15877 | -2/Research | Discovered new exit (range 6) 15882 | -2/Research | Identified exit to Quarantine 15883 | -2/Research | Entered Quarantine 15967 | -2/Quarantine | Found Unknown Launcher 16314 | -2/Quarantine | Found Alien Artifact 16665 | -2/Quarantine | Identified Gamma Bomb Array 16667 | -2/Quarantine | Core integrity fell below 50% 16682 | -2/Quarantine | Released all parts (7) 16703 | -2/Quarantine | Core integrity fell below 20% 16712 | -2/Quarantine | Lost 19 parts (2p5n3u9w) 16712 | -2/Quarantine | Discovered exit to Access (range 12) 16737 | -2/Quarantine | Found Alien Artifact 16753 | -2/Quarantine | Spotted Fortress 16791 | -2/Quarantine | Discovered new exit (range 6) 16791 | -2/Quarantine | Discovered new exit (range 6) 16794 | -2/Quarantine | Entered Protoforge 16822 | -2/Protoforge | Superfortress began startup sequence 16856 | -2/Protoforge | Destroyed by S-43 Plague with Heavy Machine Gun Last Messages --------------- 16729_ O-16 Technician: "IFF HANDSHAKE FAILED. SECURING TERMINAL." 16734_ ALERT: Hostiles spotted, dispatching reinforcements to Terminal Q007. 16737_ Dropped Adv. Weapon Cycler. 16737_ Acquired Alien Artifact. 16740_ System corrupted: Component data lost. 16756_ ALERT: Potential suspicious activity detected, Q-Series report to Quarantine Zone 5S. 16791_ EXIT=FOUND LOCATION=UNKNOWN AMBIENT_HEAT=-20 GOAL=ESCAPE 16816_ Connecting with Repair Station... 16816_ Current location identified: Protoforge 16820_ W-44 Eye sends out distress signal. 16822_ ALERT: Superfortress powering up for active defense. 16849_ System corrupted: Matter fused (-7). Map ----- +----------------------------------------------------+ | ?????????????????????????????????????????????????? | | ?????????????????????????????????????????????????? | | ?????????????????????????????????????????????????? | | ?????????????????????????????????????????????????? | | ?????????????????????????????????????????????????? | | ?????????????????????????????????????????????????? | | ?????????????????????????????????????????????????? | | ?????????????????????????????????????????????????? | | ?????????????????????????????????????????????????? | | ?????????????????????????????????????????????????? | | ?????????????????????????????????????????????????? | | ?????????????????????????###?????????????????????? | | ????????????????????????? ?????????????????????? | | ????????"???????????????? ?????????????????????? | | ???????"" ??"####??????#" ?????????????????????? | | ??????? ??????#T ?????????????????????? | | #?????? #??#" """""" ""?????????????? | | #???? """ """ """ #??# """""" ""?????????????? | | #???" """ """ """ ##?# """""" "??????????????? | | #???? """ """ """ ??# ???????????????? | | #????? #??# ????????????????? | | #???" """ " """ #??# ??????????????????? | | #???" """ " """ #??# ???????????????????? | | #???# """ " """ #??# u#????????????????????? | | #???# #??# #????????????????????? | | #####+######+###########u@ #????????????????????? | | #????????????????????? | | #????????????????????? | | #????????????????????? | | w #????????????????????? | | ##########+############### #????????????????????? | | #???# #?????????? #????????????????????? | | ##### #?????????? #????????????????????? | | """## #?????????? #????????????????????? | | """## #?????????? #????????????????????? | | R"## """ """ #?????????? #????????????????????? | | """## """ """ #?????????? #????????????????????? | | "" ## """ """ #???????????s ????????????????????? | | ##### #??????????? ????????????????????? | | #???######+#######???????? ????????????????????? | | ########### ### ######## ???????????????? | | " ???????????????? | | ############### #########??????????????????????? | | ??????????????#####??????????????????????????????? | | ?????????????????????????????????????????????????? | | ?????????????????????????????????????????????????? | | ?????????????????????????????????????????????????? | | ?????????????????????????????????????????????????? | | | | | +----------------------------------------------------+ Best States ------------- Heat Dissipation 97 Coolant Potential 80 Energy Generation 45 Energy Capacity 1190 Matter Stores 300 Matter Capacity 300 Sight Range 22 Robot Scan Range 15 Terrain Scan Density 10 Jamming Range 14 Base Temperature (-) 200 Armor Coverage 2225 Resistance: TH 30 Core Shielding 30 Weapon Cycling 25 Evasion (%) 70 Targeting Accuracy 8 Core Analysis 8 Armor Integrity Analysis 40 Recoil Reduction 6 Particle Charging 30 Kinecelleration 40 Offensive Hacking 10 Defensive Hacking 10 Trap Extractor Capacity 6 Item Schematics ----------------- Assault Drone Bay | -5/Zhirov | Free Exp. Heat Sink | -5/Zhirov | Free Exp. Optical Array | -5/Zhirov | Free Imp. Arc Thrower | -5/Zhirov | Free Imp. Diametric Drive | -3/Testing | Archive Exp. EM Disruption Field | -3/Testing | Archive Gravity Neutralizer | -3/Testing | Archive Com. Linear Accelerator | -2/Quarantine | Archive Centrium Light Armor Plating | -2/Quarantine | Archive Robot Schematics ------------------ None Fabricated ------------ Nothing Repaired ---------- Nothing Studied --------- Antimatter Reactor | -3/Research | Hacked Quantum Rifle | -3/Research | Hacked Hvy. Treads | -3/Research | Hacked Particle Reactor | -3/Research | Hacked Alien Tech Used ----------------- Integrated Dissipator Transdimensional Reconstructor Achievements -------------- Construction Begets Destruction Ew, Corruption Fancy Inventory Heavy Suspicion Hulk Smash Hydra Immobile And Lovin' It Into The Breach Jackpot Live, Flee, And Rebuild Low-level Research Tailor-made That Tickles We Love MA Challenges ------------ None Game ------ Seed SmartbombLobotomyWartreads Manual? 0 Play Time 04:03:24 Cumulative 139.6 hours Start 2026.02.10 @ 14:21:48 End 2026.02.10 @ 19:13:10 Sessions 1 Manual Loads 0 Difficulty Rogue Special Mode None Game No. 116 Rogue 116 Adventurer 0 Explorer 0 Win Type - Total 1 Types 1/0/0/0/0/0/0/0/0/0 Lore% 63 Gallery% 59 Achievement% 40 Wizard Run 0 Options --------- Layout 1 ASCII 0 Keyboard 0 Movement Numpad Keybinds 0 Fullscreen 1 Font 18/SmallcapsGlow Map View 50x40 Zoom Use 0% Tactical HUD 1 Map Filters NONE Filters NONE Steam 1 RUN: 3b7da325-abd8-4a14-b450-89fd594bd865